bitfinex/quotes_SOLUSD_20260228
["timestamp","ask_amount","ask_price","bid_price","bid_amount"]
[1772257997299,0.03719899,81.568,81.535,0.48168308]
[1772257999602,0.03719899,81.568,81.537,0.48168308]
[1772258002599,3.36663725,81.57,81.539,0.50028257]
[1772258003802,3.36663725,81.57,81.541,0.50028257]
[1772258006188,3.36663725,81.58,81.543,0.50028257]
[1772258006704,3.36663725,81.57,81.543,0.50028257]
[1772258013005,3.36663725,81.57,81.545,0.50028257]
[1772258016214,3.36663725,81.57,81.547,0.50028257]
[1772258018110,3.36663725,81.57,81.549,0.50028257]
[1772258018499,3.36663725,81.58,81.549,0.50028257]
[1772258020520,3.36663725,81.58,81.548,42.91950752]
[1772258020521,0.28432314,81.585,81.551,0.50028257]
[1772258020699,15.82309861,81.59,81.551,0.50028257]
[1772258021104,0.2,81.59,81.551,0.50028257]
[1772258021331,3.56663725,81.59,81.551,0.50028257]
[1772258021920,12.25655419,81.589,81.551,0.50028257]
[1772258022922,12.25655419,81.589,81.553,0.50028257]
[1772258023620,3.36663725,81.58,81.553,0.50028257]
[1772258023841,12.25655419,81.589,81.553,0.50028257]
[1772258025605,12.25655419,81.589,81.555,0.50028257]
[1772258027322,12.25655419,81.589,81.557,0.50028257]
[1772258027723,3.56286036,81.59,81.557,0.50028257]
[1772258027913,15.8192778,81.59,81.557,0.50028257]
[1772258028929,3.56286036,81.59,81.557,0.50028257]
[1772258030119,3.56286036,81.59,81.559,0.50028257]
[1772258031422,3.36286036,81.58,81.559,0.50028257]
[1772258031608,12.25655419,81.589,81.559,0.50028257]
[1772258034514,12.25655419,81.589,81.561,0.50028257]
[1772258037620,12.25655419,81.589,81.562,12.26061155]
[1772258037805,12.25655419,81.589,81.563,0.50028257]
[1772258041232,12.25655419,81.589,81.565,0.50028257]
[1772258046635,3.56286036,81.59,81.565,0.50028257]
[1772258046838,3.56286036,81.59,81.567,0.50028257]
[1772258047135,12.25655419,81.589,81.567,0.50028257]
[1772258054051,3.56286036,81.59,81.567,0.50028257]
[1772258054338,3.56286036,81.59,81.569,0.50028257]
[1772258054549,0.2,81.59,81.569,0.50028257]
[1772258062028,0.2,81.59,81.551,7.0]
[1772258062029,12.25655419,81.589,81.552,0.50028257]
[1772258063440,12.25655419,81.589,81.552,12.76239753]
[1772258063629,12.25655419,81.589,81.553,0.50028257]
[1772258064544,12.25655419,81.589,81.555,0.50028257]
[1772258067051,12.25655419,81.589,81.557,0.50028257]
[1772258068130,3.36286036,81.58,81.557,0.50028257]
[1772258068326,12.25655419,81.589,81.557,0.50028257]
[1772258070137,12.25655419,81.589,81.559,0.50028257]
[1772258072846,12.25655419,81.589,81.561,0.50028257]
[1772258073950,11.75655419,81.589,81.561,0.50028257]
[1772258076167,11.75655419,81.589,81.562,0.50028257]
[1772258078947,3.36286036,81.58,81.55,0.50028257]
[1772258081356,12.2580566,81.579,81.55,0.50028257]
[1772258083462,0.28432314,81.578,81.545,0.50028257]
[1772258083670,3.36286036,81.57,81.541,0.50028257]
[1772258087151,12.25955939,81.569,81.542,0.50028257]
[1772258092278,3.36451608,81.56,81.542,0.50028257]
[1772258092859,12.25955939,81.569,81.542,0.50028257]
[1772258096782,3.36451608,81.56,81.542,0.50028257]
[1772258097370,15.62546223,81.56,81.535,12.26466214]
[1772258097687,3.36451608,81.55,81.522,0.50028257]
[1772258098067,3.36451608,81.55,81.523,0.50028257]
[1772258099669,3.36451608,81.55,81.525,0.50028257]
[1772258100666,12.261566,81.556,81.525,0.50028257]
[1772258101998,3.36451608,81.56,81.527,0.50028257]
[1772258102199,12.26106254,81.559,81.527,0.50028257]
[1772258102895,3.36451608,81.56,81.527,0.50028257]
[1772258104193,3.36451608,81.56,81.528,12.26572465]
[1772258104393,3.36451608,81.56,81.529,0.50028257]
[1772258105407,12.26106254,81.559,81.529,0.50028257]
[1772258105702,3.36451608,81.55,81.529,0.50028257]
[1772258106698,3.36451608,81.56,81.529,0.50028257]
[1772258108393,3.36451608,81.55,81.529,0.50028257]
[1772258109581,12.2622044,81.552,81.529,0.50028257]
[1772258109982,12.26154977,81.556,81.53,0.50028257]
[1772258111394,12.26154977,81.556,81.518,0.50028257]
[1772258111608,0.28432314,81.555,81.518,0.50028257]
[1772258111785,3.36451608,81.55,81.518,0.50028257]
[1772258113611,15.62705191,81.55,81.52,0.50028257]
[1772258113943,3.36451608,81.56,81.521,0.50028257]
[1772258114091,0.28432314,81.567,81.521,0.50028257]
[1772258115489,0.28432314,81.565,81.523,0.50028257]
[1772258118523,3.36451608,81.56,81.525,0.50028257]
[1772258119621,12.26106254,81.559,81.527,0.50028257]
[1772258120025,3.36451608,81.56,81.527,0.50028257]
[1772258122231,12.26106254,81.559,81.529,0.50028257]
[1772258131537,42.91371889,81.559,81.529,0.50028257]
[1772258135237,12.26106254,81.559,81.53,0.50028257]
[1772258138531,3.69383402,81.566,81.531,12.26527333]
[1772258138739,12.25970969,81.568,81.532,0.50028257]
[1772258140640,12.25970969,81.568,81.534,0.50028257]
[1772258140840,3.36451608,81.56,81.534,0.50028257]
[1772258145137,12.26106254,81.559,81.534,12.76503837]
[1772258145341,12.26106254,81.559,81.535,0.50028257]
[1772258148942,42.91371889,81.559,81.535,0.50028257]
[1772258149144,12.26106254,81.559,81.535,0.50028257]
[1772258162535,12.26022241,81.565,81.537,0.50028257]
[1772258167753,30.64523361,81.579,81.525,30.66521394]
[1772258167754,3.36538807,81.56,81.539,0.50028257]
[1772258169854,3.36538807,81.57,81.539,0.50028257]
[1772258170441,3.36538807,81.57,81.541,0.50028257]
[1772258172164,3.36538807,81.58,81.543,0.50028257]
[1772258174659,3.36538807,81.58,81.542,12.26361874]
[1772258174660,12.2580566,81.579,81.544,12.26331796]
[1772258174868,12.2580566,81.579,81.545,0.50028257]
[1772258178270,12.2580566,81.579,81.547,0.50028257]
[1772258181481,12.2580566,81.579,81.549,0.50028257]
[1772258182856,3.36538807,81.57,81.549,0.50028257]
[1772258184273,12.25955939,81.569,81.549,0.50028257]
[1772258185975,3.36538807,81.56,81.539,0.50028257]
[1772258187174,12.26106254,81.559,81.539,0.50028257]
[1772258202194,3.36538807,81.56,81.539,0.50028257]
[1772258203600,30.6454832,81.579,81.541,0.50028257]
[1772258203894,3.36538807,81.57,81.541,0.50028257]
[1772258207300,12.25955939,81.569,81.541,0.50028257]
[1772258212701,12.25955939,81.569,81.543,0.50028257]
[1772258213108,49.01106556,81.615,81.543,0.50028257]
[1772258213109,12.25888307,81.574,81.543,0.50028257]
[1772258213295,12.2580566,81.579,81.545,0.50028257]
[1772258214007,3.36483059,81.57,81.545,0.50028257]
[1772258215303,12.25955939,81.569,81.545,0.50028257]
[1772258218108,12.25955939,81.569,81.546,0.50028257]
[1772258219027,12.25893949,81.574,81.546,0.50028257]
[1772258220414,3.36483059,81.57,81.548,0.50028257]
[1772258220616,12.2580566,81.579,81.548,0.50028257]
[1772258221012,3.36483059,81.58,81.548,0.50028257]
[1772258221217,12.25743089,81.584,81.548,0.50028257]
[1772258221517,12.25743089,81.584,81.547,42.92003384]
[1772258221518,12.25675805,81.588,81.551,0.50028257]
[1772258221714,0.2,81.59,81.561,0.50028257]
[1772258221920,0.2,81.6,81.571,0.49821041]
[1772258222122,0.2,81.6,81.581,0.49821041]
[1772258222304,0.2,81.6,81.582,0.49821041]
[1772258224416,0.19947099,81.599,81.582,0.49821041]
[1772258226617,0.2,81.6,81.582,0.49821041]
[1772258231822,0.1994678,81.584,81.538,0.49187441]
[1772258232025,0.1994678,81.559,81.538,0.49187441]
[1772258234822,12.46060418,81.559,81.538,0.49187441]
[1772258235629,0.19946631,81.558,81.538,0.49187441]
[1772258238227,0.19946524,81.556,81.534,0.49187441]
[1772258238816,0.19946524,81.556,81.529,0.49187441]
[1772258241133,12.2616639,81.555,81.529,0.49187441]
[1772258241337,0.19946421,81.554,81.529,0.49187441]
[1772258243529,0.19946421,81.554,81.53,12.26542377]
[1772258243731,0.19946421,81.554,81.531,0.49187441]
[1772258245337,12.2616639,81.555,81.531,0.49187441]
[1772258245537,12.2616639,81.555,81.52,3.36483059]
[1772258245538,0.19946288,81.589,81.552,12.26211496]
[1772258245721,0.19946288,81.579,81.553,0.49187441]
[1772258247641,0.19946224,81.584,81.555,0.49187441]
[1772258248628,12.25655419,81.589,81.554,12.26181425]
[1772258248629,12.25655419,81.589,81.561,0.49187441]
[1772258250344,0.19946131,81.598,81.571,0.49187441]
[1772258253348,12.25505325,81.599,81.571,0.49187441]
[1772258253545,12.25505325,81.599,81.573,0.49187441]
[1772258256336,0.28432314,81.597,81.558,0.49187441]
[1772258256535,0.19945953,81.589,81.551,0.49187441]
[1772258258548,12.45492022,81.6,81.571,0.49187441]
[1772258258856,0.2,81.6,81.571,0.49187441]
[1772258261367,0.2,81.6,81.572,12.25910851]
[1772258261550,0.2,81.6,81.573,0.46245285]
[1772258262054,0.2,81.61,81.591,0.46245285]
[1772258262240,0.2,81.61,81.572,42.9068798]
[1772258262241,0.2,81.62,81.601,0.46245285]
[1772258262749,12.25204915,81.619,81.601,0.46245285]
[1772258267763,0.2,81.62,81.601,0.46245285]
[1772258272765,0.3994549,81.62,81.601,0.46245285]
[1772258273068,12.65145601,81.62,81.601,0.46245285]
[1772258273666,0.19945467,81.619,81.601,0.46245285]
[1772258277170,12.25219926,81.618,81.601,2.1e-06]
[1772258277469,0.2,81.62,81.601,2.1e-06]
[1772258277669,0.45737171,81.619,81.601,2.1e-06]
[1772258278957,0.45737171,81.619,81.592,12.255963]
[1772258280576,0.45737171,81.617,81.592,12.255963]
[1772258280971,0.45737171,81.617,81.593,0.46245285]
[1772258286367,0.45737171,81.615,81.593,0.46245285]
[1772258288964,0.45737171,81.615,81.583,30.64336989]
[1772258289161,0.2,81.62,81.59,3.35943503]
[1772258289962,0.45737171,81.619,81.59,3.35943503]
[1772258290578,0.45737171,81.619,81.591,12.25625375]
[1772258290979,0.45737171,81.619,81.59,3.35943503]
[1772258290980,0.45737171,81.619,81.592,0.37566722]
[1772258291281,0.45737171,81.619,81.59,12.63200607]
[1772258291684,0.45737171,81.619,81.591,0.37566703]
[1772258292478,0.47369675,81.617,81.591,0.37566703]
[1772258293582,0.47369675,81.615,81.591,0.37566703]
[1772258294266,0.47369675,81.615,81.593,0.37566649]
[1772258302169,0.47369675,81.613,81.589,0.37566513]
[1772258303294,0.47369675,81.613,81.591,0.37566497]
[1772258311291,0.47369675,81.613,81.58,3.35943503]
[1772258312499,0.47369675,81.613,81.581,12.25775609]
[1772258317402,0.47369675,81.613,81.59,3.35943503]
[1772258318796,0.50000692,81.618,81.59,3.35943503]
[1772258318999,0.50000692,81.618,81.6,3.35943503]
[1772258319387,0.50000692,81.618,81.59,3.35943503]
[1772258320692,0.50000692,81.618,81.601,12.25475178]
[1772258327204,0.50000692,81.618,81.572,43.19120294]
[1772258327398,0.50000692,81.618,81.6,3.35943503]
[1772258328205,0.50000692,81.618,81.574,7.0]
[1772258328206,0.50000692,81.618,81.59,3.35943503]
[1772258328910,0.50000692,81.618,81.6,3.35943503]
[1772258329112,12.25063529,81.629,81.601,12.25475178]
[1772258331019,0.4634381,81.628,81.601,12.25475178]
[1772258333411,0.4634381,81.626,81.601,12.25475178]
[1772258333590,0.4634381,81.626,81.601,12.73249889]
[1772258334189,0.4634381,81.626,81.601,12.25475178]
[1772258334401,0.4634381,81.626,81.602,0.47774711]
[1772258338918,0.4634381,81.624,81.602,0.47774711]
[1772258339217,0.4634381,81.624,81.601,12.25475178]
[1772258340230,12.25144873,81.623,81.598,0.47774711]
[1772258340410,0.4634381,81.622,81.598,0.47774711]
[1772258342829,0.4634381,81.627,81.601,0.47774711]
[1772258346316,0.4634381,81.627,81.603,0.47774711]
[1772258347821,0.4634381,81.626,81.597,12.25530972]
[1772258348322,0.4634381,81.626,81.598,0.47774711]
[1772258349009,0.4634381,81.626,81.6,0.47774711]
[1772258349410,0.4634381,81.626,81.601,0.47774711]
[1772258350232,0.6634381,81.63,81.601,0.47774711]
[1772258350810,0.46237728,81.629,81.601,0.47774711]
[1772258354330,0.46237728,81.629,81.602,12.2546016]
[1772258354508,0.46237728,81.629,81.603,0.48088021]
[1772258355411,0.46237728,81.629,81.605,0.48088021]
[1772258356023,0.46237728,81.627,81.601,0.48088021]
[1772258357623,0.46237728,81.627,81.603,0.48088021]
[1772258358617,0.46237728,81.627,81.605,0.48088021]
[1772258360337,0.46237728,81.625,81.593,0.48088021]
[1772258361320,0.46237728,81.625,81.595,0.48088021]
[1772258363932,0.46237728,81.625,81.601,0.48088021]
[1772258369528,12.71366041,81.625,81.601,0.48088021]
[1772258369736,0.46237728,81.624,81.601,0.48088021]
[1772258373441,0.46237728,81.624,81.603,0.48088021]
[1772258383942,0.46237728,81.624,81.563,7.0]
[1772258383943,0.47436242,81.614,81.578,0.48398947]
[1772258385851,0.47436242,81.613,81.583,0.48398947]
[1772258388443,0.47436242,81.611,81.584,12.74129482]
[1772258388651,0.47436242,81.611,81.585,0.48398947]
[1772258389537,0.2,81.64,81.591,0.48398947]
[1772258389736,0.2,81.66,81.631,0.48398947]
[1772258389963,0.47436242,81.659,81.64,3.84298466]
[1772258390250,0.2,81.68,81.651,0.48398947]
[1772258390251,0.47436242,81.669,81.651,0.48398947]
[1772258390842,0.47436242,81.678,81.651,0.48398947]
[1772258391545,0.47436242,81.678,81.65,3.35396222]
[1772258391546,0.47436242,81.678,81.653,0.48398947]
[1772258392553,0.47436242,81.674,81.653,0.48398947]
[1772258393856,0.47436242,81.679,81.655,0.48398947]
[1772258395147,0.47436242,81.675,81.655,0.48398947]
[1772258395348,0.47436242,81.675,81.624,49.00478921]
[1772258395349,0.47436242,81.669,81.641,0.48398947]
[1772258396553,0.47436242,81.669,81.643,12.24832914]
[1772258397136,0.47436242,81.669,81.641,0.48398947]
[1772258397137,0.47436242,81.667,81.641,0.48398947]
[1772258397535,0.47436242,81.667,81.642,0.48398947]
[1772258399435,0.47436242,81.665,81.642,0.48398947]
[1772258399655,0.47436242,81.665,81.637,0.48398947]
[1772258400554,0.47436242,81.665,81.64,3.35396222]
[1772258400742,0.47436242,81.665,81.641,0.48398947]
[1772258401150,0.47436242,81.665,81.64,3.35396222]
[1772258401361,0.47436242,81.663,81.632,0.48398947]
[1772258401561,0.47436242,81.659,81.627,0.48398947]
[1772258402140,0.47436242,81.659,81.625,12.25109038]
[1772258404543,0.47436242,81.657,81.625,12.25109038]
[1772258404950,0.47436242,81.655,81.622,0.48398947]
[1772258405155,0.28432314,81.656,81.611,0.48398947]
[1772258405156,0.47436242,81.649,81.611,0.48398947]
[1772258406691,0.47436242,81.647,81.613,0.48398947]
[1772258408861,0.47436242,81.647,81.615,0.48398947]
[1772258411064,0.45302082,81.645,81.617,0.47651627]
[1772258415573,0.45302082,81.639,81.606,0.47651627]
[1772258416872,0.45302082,81.639,81.611,0.47651627]
[1772258418069,0.45302082,81.639,81.613,0.47651627]
[1772258420175,0.45302082,81.637,81.613,0.47651627]
[1772258424182,0.45302082,81.635,81.602,0.47651627]
[1772258424380,0.45302082,81.629,81.602,0.47651627]
[1772258425174,0.45302082,81.629,81.59,33.99468021]
[1772258425175,0.45302082,81.629,81.598,0.47651627]
[1772258425383,0.45302082,81.619,81.596,12.25535744]
[1772258426665,0.45302082,81.619,81.596,0.47651627]
[1772258430780,0.45302082,81.619,81.598,0.47651627]
[1772258433776,0.45302082,81.619,81.6,0.47651627]
[1772258436088,0.45302082,81.619,81.596,0.47651627]
[1772258436791,0.45302082,81.617,81.586,12.73348983]
[1772258436986,12.25219926,81.618,81.586,12.25697356]
[1772258436987,0.45302082,81.609,81.586,12.25697356]
[1772258437894,0.45302082,81.609,81.587,0.47651627]
[1772258438788,0.45302082,81.623,81.591,0.47651627]
[1772258440290,0.45302082,81.623,81.593,0.47651627]
[1772258442894,0.45302082,81.623,81.595,0.49220589]
[1772258445781,0.45302082,81.623,81.597,0.49220589]
[1772258448098,0.45302082,81.623,81.599,0.49220589]
[1772258450200,0.46266527,81.634,81.601,0.49220589]
[1772258450704,0.46266527,81.634,81.611,0.49220589]
[1772258453385,0.46266527,81.634,81.613,0.49220589]
[1772258454601,0.46266527,81.634,81.614,12.25279976]
[1772258454804,0.46266527,81.634,81.615,0.49220589]
[1772258457705,0.46266527,81.634,81.616,12.2524995]
[1772258458008,0.46266527,81.634,81.617,0.49220589]
[1772258460409,0.46266527,81.648,81.619,0.49220589]
[1772258461512,0.46266527,81.648,81.621,0.49220589]
[1772258462611,0.46266527,81.648,81.623,0.49220589]
[1772258466110,0.46266527,81.663,81.625,0.49220589]
[1772258469516,0.46266527,81.663,81.627,0.49220589]
[1772258469715,0.46266527,81.661,81.627,0.49220589]
[1772258470794,0.47064677,81.659,81.627,0.49220589]
[1772258472704,0.47064677,81.657,81.629,0.45953884]
[1772258475300,0.47064677,81.657,81.631,0.45953884]
[1772258478514,0.47064677,81.657,81.633,0.45953884]
[1772258478832,0.47064677,81.656,81.633,0.45953884]
[1772258479705,0.47064677,81.656,81.622,12.25154632]
[1772258480034,0.47064677,81.656,81.617,0.45953884]
[1772258480035,0.47064677,81.649,81.617,12.71179725]
[1772258480338,0.47064677,81.649,81.618,0.45953884]
[1772258481926,0.47064677,81.647,81.617,12.25225841]
[1772258482225,0.47064677,81.647,81.618,0.45953884]
[1772258483928,0.47064677,81.647,81.621,0.45953884]
[1772258484624,0.47064677,81.651,81.621,0.45953884]
[1772258485528,0.47064677,81.649,81.623,0.45953884]
[1772258487726,0.47064677,81.649,81.625,0.45953884]
[1772258490025,0.47064677,81.648,81.625,0.45953884]
[1772258491415,0.47064677,81.648,81.627,0.45953884]
[1772258492428,30.61225985,81.667,81.611,7.0]
[1772258492429,0.47064677,81.669,81.631,0.45953884]
[1772258492619,0.47064677,81.665,81.631,0.45953884]
[1772258494617,0.47064677,81.663,81.633,0.45953884]
[1772258496752,3.69383402,81.666,81.633,0.45953884]
[1772258496753,12.2455977,81.662,81.633,0.45953884]
[1772258496937,0.47064677,81.661,81.633,0.45953884]
[1772258497525,0.47064677,81.661,81.635,0.45953884]
[1772258499033,0.47064677,81.661,81.637,0.45953884]
[1772258500636,0.48078341,81.659,81.637,0.45953884]
[1772258520853,0.4716171,81.657,81.617,12.25234938]
[1772258521155,12.24619755,81.658,81.617,12.25234938]
[1772258521156,0.4716171,81.649,81.618,0.48919009]
[1772258522558,0.4716171,81.649,81.62,0.48919009]
[1772258522559,0.4716171,81.648,81.62,0.48919009]
[1772258526956,0.4716171,81.648,81.622,0.48919009]
[1772258530145,0.4716171,81.648,81.614,30.63170661]
[1772258530146,0.4716171,81.648,81.623,12.25144873]
[1772258530347,0.4716171,81.648,81.624,0.48919009]
[1772258530547,12.24784744,81.647,81.624,0.48919009]
[1772258530753,0.48109562,81.646,81.619,0.49495546]
[1772258532865,0.48109562,81.646,81.621,0.49495546]
[1772258533063,0.48109562,81.644,81.621,0.49495546]
[1772258535147,0.48109562,81.644,81.622,12.25159883]
[1772258535461,0.48109562,81.644,81.623,0.49495546]
[1772258537363,0.48109562,81.649,81.625,0.49495546]
[1772258538761,0.48109562,81.649,81.626,12.25099845]
[1772258539070,0.48109562,81.649,81.627,0.49495546]
[1772258540065,0.48109562,81.649,81.621,0.49495546]
[1772258541468,0.48109562,81.647,81.623,0.49495546]
[1772258546066,0.48109562,81.645,81.618,0.49495546]
[1772258546261,0.48109562,81.645,81.612,0.49495546]
[1772258547170,0.48109562,81.645,81.614,0.49495546]
[1772258549166,0.48109562,81.643,81.614,0.49495546]
[1772258550862,0.48109562,81.641,81.614,0.49495546]
[1772258551566,0.48109562,81.649,81.616,0.49495546]
[1772258551779,0.48109562,81.655,81.631,0.49495546]
[1772258552074,0.48109562,81.66,81.631,0.49495546]
[1772258553777,0.48109562,81.66,81.633,0.49495546]
[1772258553970,0.48109562,81.658,81.622,0.49495546]
[1772258554176,0.48109562,81.649,81.617,0.49495546]
[1772258555084,0.48109562,81.649,81.617,12.74730484]
[1772258555574,0.48109562,81.649,81.617,0.49495546]
[1772258555964,0.48109562,81.647,81.617,0.49495546]
[1772258559875,0.48109562,81.645,81.617,0.49495546]
[1772258562576,12.24829748,81.644,81.617,0.49495546]
[1772258562770,0.49692331,81.643,81.617,0.49495546]
[1772258567078,0.49692331,81.641,81.617,0.49495546]
[1772258567278,0.49692331,81.641,81.613,12.74668502]
[1772258567482,0.49692331,81.629,81.596,0.49379063]
[1772258567692,0.49692331,81.609,81.583,12.75124622]
[1772258568476,0.49692331,81.599,81.572,0.49379063]
[1772258569487,0.49692331,81.597,81.572,0.49379063]
[1772258570785,0.49692331,81.595,81.572,0.49379063]
[1772258576589,0.49692331,81.595,81.553,30.65477126]
[1772258576590,0.49692331,81.593,81.561,0.49379063]
[1772258577580,0.49692331,81.591,81.562,0.49379063]
[1772258580204,0.49692331,81.591,81.564,0.49379063]
[1772258580691,0.49692331,81.589,81.564,0.49379063]
[1772258582291,0.49692331,81.589,81.566,0.49379063]
[1772258587099,0.49692331,81.589,81.568,0.49379063]
[1772258587910,0.49692331,81.589,81.541,7.0]
[1772258587911,0.49692331,81.587,81.534,0.49379063]
[1772258588113,0.49692331,81.579,81.541,0.49379063]
[1772258588815,0.49692331,81.577,81.541,0.49379063]
[1772258589114,0.49692331,81.573,81.541,0.49379063]
[1772258590110,0.49692331,81.571,81.541,0.49379063]
[1772258591219,3.36112613,81.57,81.541,0.49379063]
[1772258591418,0.48651673,81.569,81.541,0.49379063]
[1772258593624,0.48651673,81.567,81.543,0.48287763]
[1772258595232,0.48651673,81.559,81.54,0.2]
[1772258595607,0.48651673,81.549,81.54,0.2]
[1772258596412,12.26121287,81.558,81.53,0.2]
[1772258596413,0.48651673,81.539,81.53,0.2]
[1772258596805,42.91424506,81.558,81.531,0.48287763]
[1772258596806,3.36112613,81.55,81.531,0.48287763]
[1772258597011,3.36112613,81.55,81.532,0.48287763]
[1772258597012,3.84764286,81.55,81.532,0.48287763]
[1772258598123,0.48651673,81.549,81.53,0.2]
[1772258599526,0.48651673,81.539,81.53,0.2]
[1772258599732,0.48651673,81.539,81.52,0.2]
[1772258602425,0.48651673,81.537,81.52,0.68287763]
[1772258602811,0.28432314,81.559,81.521,0.48287763]
[1772258603022,3.36112613,81.55,81.521,0.48287763]
[1772258604115,12.26256606,81.549,81.521,0.48287763]
[1772258605030,0.48651673,81.548,81.521,0.48287763]
[1772258606530,12.26286681,81.547,81.521,0.48287763]
[1772258607142,12.74938354,81.547,81.521,0.48287763]
[1772258609137,0.48651673,81.552,81.523,0.48287763]
[1772258609530,12.26168699,81.555,81.523,0.48287763]
[1772258610139,0.48651673,81.557,81.525,0.48287763]
[1772258612228,3.36112613,81.56,81.527,0.48287763]
[1772258612428,0.48651673,81.559,81.527,0.48287763]
[1772258614235,3.36112613,81.56,81.528,12.26572465]
[1772258614544,3.36112613,81.56,81.529,0.48287763]
[1772258614746,0.48651673,81.559,81.529,0.48287763]
[1772258617728,12.26121287,81.558,81.529,0.48287763]
[1772258618040,0.48651673,81.557,81.529,0.48287763]
[1772258619426,0.48651673,81.557,81.52,3.56112613]
[1772258619628,0.48651673,81.557,81.531,0.48287763]
[1772258620836,3.36112613,81.56,81.531,0.48287763]
[1772258621544,3.36112613,81.56,81.532,12.26512289]
[1772258621749,3.36112613,81.56,81.533,0.47083694]
[1772258622951,3.36112613,81.56,81.535,0.47083694]
[1772258623337,0.51154476,81.558,81.535,0.47083694]
[1772258624759,0.51154476,81.558,81.523,0.47083694]
[1772258625846,12.26136321,81.557,81.523,0.47083694]
[1772258626052,0.51154476,81.556,81.523,0.47083694]
[1772258627236,3.87267089,81.55,81.523,0.47083694]
[1772258627958,0.51154476,81.55,81.523,0.47083694]
[1772258630144,0.51154476,81.55,81.525,0.47083694]
[1772258630536,12.26234164,81.551,81.525,0.47083694]
[1772258631352,0.51154476,81.549,81.525,0.47083694]
[1772258632451,12.77412487,81.549,81.525,0.47083694]
[1772258633558,12.77412487,81.549,81.526,0.47083694]
[1772258636867,0.51154476,81.548,81.526,0.47083694]
[1772258637259,0.51154476,81.549,81.526,0.47083694]
[1772258641573,0.51154476,81.549,81.528,0.47083694]
[1772258642485,0.51154476,81.548,81.528,0.47083694]
[1772258645159,3.36591659,81.55,81.528,0.47083694]
[1772258646371,3.87746135,81.55,81.528,0.47083694]
[1772258646761,0.51154476,81.549,81.528,0.47083694]
[1772258647671,0.51154476,81.549,81.52,0.2]
[1772258647874,0.51154476,81.547,81.523,0.47083694]
[1772258656593,0.51154476,81.547,81.525,0.52712685]
[1772258658868,0.51154476,81.547,81.52,0.2]
[1772258658869,0.51154476,81.547,81.527,0.52712685]
[1772258659198,3.36591659,81.55,81.527,0.52712685]
[1772258659490,12.26202127,81.553,81.527,0.52712685]
[1772258659695,0.52503434,81.552,81.527,0.52712685]
[1772258660485,0.52503434,81.565,81.527,0.52712685]
[1772258662672,0.52503434,81.565,81.528,12.26572465]
[1772258662986,0.52503434,81.565,81.529,0.52712685]
[1772258664967,0.52503434,81.565,81.531,0.52712685]
[1772258668094,0.52503434,81.565,81.533,0.52712685]
[1772258671778,3.36591659,81.56,81.535,0.52712685]
[1772258672006,0.52503434,81.559,81.535,0.52712685]
[1772258673817,3.69383402,81.592,81.524,0.52712685]
[1772258673818,0.52503434,81.549,81.524,0.52712685]
[1772258676927,0.52503434,81.549,81.52,3.56591659]
[1772258676928,0.52503434,81.549,81.526,0.52712685]
[1772258680008,0.52503434,81.549,81.528,0.52712685]
[1772258682604,0.52503434,81.549,81.529,12.26557421]
[1772258682793,0.52503434,81.549,81.53,0.48933813]
[1772258684103,0.52503434,81.549,81.529,12.26557421]
[1772258684588,0.52503434,81.549,81.53,0.48933813]
[1772258696323,0.49093714,81.547,81.521,0.48933813]
[1772258697398,0.49093714,81.547,81.523,0.48933813]
[1772258698715,0.49093714,81.545,81.523,0.48933813]
[1772258700706,0.49093714,81.539,81.51,0.1]
[1772258700896,12.26331796,81.544,81.49,3.46579437]
[1772258700897,0.49093714,81.529,81.503,0.48933813]
[1772258701696,0.49093714,81.529,81.5,0.58933813]
[1772258701908,0.49093714,81.519,81.5,0.1]
[1772258702718,0.49093714,81.517,81.5,0.1]
[1772258704021,0.49093714,81.515,81.5,0.1]
[1772258708605,3.36579437,81.52,81.5,0.1]
[1772258708606,0.49093714,81.519,81.501,0.48933813]
[1772258708806,0.49093714,81.523,81.501,0.48933813]
[1772258712300,30.66159086,81.536,81.501,0.48933813]
[1772258712301,0.50430488,81.519,81.501,0.48933813]
[1772258721330,3.36579437,81.52,81.501,0.48933813]
[1772258723628,3.87009925,81.52,81.501,0.48933813]
[1772258725111,3.36579437,81.52,81.501,0.48933813]
[1772258725312,0.50430488,81.524,81.503,0.50246037]
[1772258729037,0.50430488,81.522,81.503,0.50246037]
[1772258729532,3.36579437,81.52,81.503,0.50246037]
[1772258729725,0.50430488,81.519,81.503,0.50246037]
[1772258731044,0.50430488,81.518,81.503,0.50246037]
[1772258733836,0.50430488,81.518,81.5,0.1]
[1772258734139,0.50430488,81.516,81.49,0.1]
[1772258734340,0.50430488,81.509,81.49,0.1]
[1772258734545,0.50430488,81.509,81.49,0.60246037]
[1772258736840,0.50430488,81.509,81.49,0.1]
[1772258737845,0.50430488,81.507,81.49,0.1]
[1772258739144,0.50430488,81.507,81.49,0.60246037]
[1772258739942,0.50430488,81.505,81.49,0.60246037]
[1772258745540,0.50048873,81.514,81.492,0.49376262]
[1772258746053,0.50048873,81.513,81.492,0.49376262]
[1772258748835,0.50048873,81.511,81.492,0.49376262]
[1772258749661,0.50048873,81.516,81.492,0.49376262]
[1772258752251,12.26768079,81.515,81.492,0.49376262]